[Event "Titled Tuesday Blitz May 24 Early 2022"]
[White "Hoffmann, Asa"]
[Black "Gulevich, Artem"]
[WhiteFideId "2001470"]
[BlackFideId "24119580"]
[WhiteElo "2117"]
[BlackElo "2218"]
[Result "0-1"]
[Round "07"]
[TimeControl "180+1"]
[Date "2022.05.25"]
[WhiteClock "0:01:48"]
[BlackClock "0:01:41"]

1. d4 {[%clk 0:02:54]}  d5 {[%clk 0:02:59]} 2. Bg5 {[%clk 0:02:53]}  Nf6 {[%clk 0:02:55]} 3. Nd2 {[%clk 0:02:52]}  e6 {[%clk 0:02:54]} 4. e3 {[%clk 0:02:51]}  Be7 {[%clk 0:02:54]} 5. Bd3 {[%clk 0:02:51]}  c5 {[%clk 0:02:53]} 6. c3 {[%clk 0:02:51]}  Nbd7 {[%clk 0:02:50]} 7. f4 {[%clk 0:02:49]}  a6 {[%clk 0:02:46]} 8. Ngf3 {[%clk 0:02:49]}  b5 {[%clk 0:02:47]} 9. O-O {[%clk 0:02:49]}  Bb7 {[%clk 0:02:41]} 10. Ne5 {[%clk 0:02:48]}  g6 {[%clk 0:02:38]} 11. Qf3 {[%clk 0:02:43]}  Qc7 {[%clk 0:02:27]} 12. a4 {[%clk 0:02:41]}  b4 {[%clk 0:02:23]} 13. cxb4 {[%clk 0:02:39]}  cxd4 {[%clk 0:02:20]} 14. exd4 {[%clk 0:02:36]}  Bxb4 {[%clk 0:02:19]} 15. Rac1 {[%clk 0:02:36]}  Qb6 {[%clk 0:02:17]} 16. Nb3 {[%clk 0:02:32]}  O-O {[%clk 0:02:06]} 17. Kh1 {[%clk 0:02:28]}  Rfc8 {[%clk 0:02:05]} 18. Qh3 {[%clk 0:02:20]}  Rxc1 {[%clk 0:01:51]} 19. Rxc1 {[%clk 0:02:17]}  Rc8 {[%clk 0:01:51]} 20. Rd1 {[%clk 0:02:13]}  Bf8 {[%clk 0:01:49]} 21. Bf1 {[%clk 0:02:01]}  Nxe5 {[%clk 0:01:42]} 22. fxe5 {[%clk 0:01:51]}  Ne4 {[%clk 0:01:42]} 23. Bf4 {[%clk 0:01:48]}  Nf2+ {[%clk 0:01:41]} 0-1


[Site "https://www.chess.com"]

[Event "Titled Tuesday Blitz May 24 Early 2022"]
[White "Itkis, Boris"]
[Black "Avramidou, Anastasia"]
[WhiteFideId "1209167"]
[BlackFideId "4239873"]
[WhiteElo "2207"]
[BlackElo "2183"]
[Result "1/2-1/2"]
[Round "07"]
[TimeControl "180+1"]
[Date "2022.05.25"]
[WhiteClock "0:00:22"]
[BlackClock "0:00:11"]

1. Nf3 {[%clk 0:03:00]}  Nf6 {[%clk 0:02:53]} 2. b3 {[%clk 0:03:00]}  g6 {[%clk 0:02:53]} 3. Bb2 {[%clk 0:03:01]}  Bg7 {[%clk 0:02:54]} 4. d4 {[%clk 0:03:02]}  O-O {[%clk 0:02:54]} 5. e3 {[%clk 0:03:02]}  d5 {[%clk 0:02:55]} 6. Nbd2 {[%clk 0:03:03]}  b6 {[%clk 0:02:55]} 7. Bd3 {[%clk 0:03:02]}  Bb7 {[%clk 0:02:56]} 8. O-O {[%clk 0:03:02]}  c5 {[%clk 0:02:57]} 9. c4 {[%clk 0:03:02]}  Nc6 {[%clk 0:02:57]} 10. Rc1 {[%clk 0:03:02]}  dxc4 {[%clk 0:02:57]} 11. Nxc4 {[%clk 0:03:02]}  cxd4 {[%clk 0:02:56]} 12. Nxd4 {[%clk 0:03:00]}  Nxd4 {[%clk 0:02:57]} 13. Bxd4 {[%clk 0:03:01]}  Qd5 {[%clk 0:02:52]} 14. f3 {[%clk 0:03:01]}  Rfd8 {[%clk 0:02:50]} 15. Qe2 {[%clk 0:02:59]}  Qd7 {[%clk 0:01:59]} 16. Ne5 {[%clk 0:02:29]}  Qe8 {[%clk 0:01:54]} 17. Rc7 {[%clk 0:02:28]}  Bd5 {[%clk 0:01:52]} 18. Rfc1 {[%clk 0:02:26]}  Rdc8 {[%clk 0:01:51]} 19. Ba6 {[%clk 0:02:12]}  Rxc7 {[%clk 0:01:48]} 20. Rxc7 {[%clk 0:02:13]}  Qd8 {[%clk 0:01:48]} 21. Qc2 {[%clk 0:02:08]}  h6 {[%clk 0:01:22]} 22. Kf2 {[%clk 0:01:27]}  Kh7 {[%clk 0:01:18]} 23. Rc8 {[%clk 0:01:22]}  Rxc8 {[%clk 0:01:17]} 24. Qxc8 {[%clk 0:01:23]}  Qxc8 {[%clk 0:01:17]} 25. Bxc8 {[%clk 0:01:23]}  Kg8 {[%clk 0:01:15]} 26. Ba6 {[%clk 0:01:18]}  Kf8 {[%clk 0:01:13]} 27. Bc4 {[%clk 0:01:17]}  Bxc4 {[%clk 0:01:13]} 28. Nxc4 {[%clk 0:01:17]}  Ke8 {[%clk 0:01:11]} 29. Ke2 {[%clk 0:01:17]}  Kd7 {[%clk 0:01:11]} 30. Kd3 {[%clk 0:01:18]}  Ke6 {[%clk 0:01:10]} 31. Na3 {[%clk 0:01:16]}  Kd7 {[%clk 0:00:56]} 32. Nb5 {[%clk 0:01:13]}  a6 {[%clk 0:00:55]} 33. Nc3 {[%clk 0:01:12]}  Kc6 {[%clk 0:00:55]} 34. Ne4 {[%clk 0:01:03]}  Ne8 {[%clk 0:00:47]} 35. g4 {[%clk 0:00:52]}  Bxd4 {[%clk 0:00:44]} 36. Kxd4 {[%clk 0:00:53]}  f6 {[%clk 0:00:43]} 37. h4 {[%clk 0:00:51]}  Ng7 {[%clk 0:00:42]} 38. Ng3 {[%clk 0:00:49]}  Ne6+ {[%clk 0:00:42]} 39. Kd3 {[%clk 0:00:48]}  Kd5 {[%clk 0:00:39]} 40. h5 {[%clk 0:00:41]}  gxh5 {[%clk 0:00:36]} 41. gxh5 {[%clk 0:00:37]}  Ng7 {[%clk 0:00:34]} 42. f4 {[%clk 0:00:35]}  e6 {[%clk 0:00:20]} 43. e4+ {[%clk 0:00:34]}  Kc5 {[%clk 0:00:20]} 44. a3 {[%clk 0:00:32]}  a5 {[%clk 0:00:20]} 45. Kc3 {[%clk 0:00:31]}  b5 {[%clk 0:00:15]} 46. b4+ {[%clk 0:00:31]}  axb4+ {[%clk 0:00:16]} 47. axb4+ {[%clk 0:00:32]}  Kc6 {[%clk 0:00:16]} 48. Kd4 {[%clk 0:00:31]}  Ne8 {[%clk 0:00:11]} 49. Nf1 {[%clk 0:00:22]}  Ng7 {[%clk 0:00:11]} 50. Ng3 {[%clk 0:00:22]}  Ne8 {[%clk 0:00:11]} 51. Nf1 {[%clk 0:00:22]}  Ng7 {[%clk 0:00:11]} 52. Ng3 {[%clk 0:00:22]} 1/2-1/2


[Site "https://www.chess.com"]

[Event "Titled Tuesday Blitz May 24 Early 2022"]
[White "Ivanisevic, Ivan"]
[Black "Bellissimo, Joseph F."]
[WhiteFideId "912417"]
[BlackFideId "2609843"]
[WhiteElo "2495"]
[BlackElo "2061"]
[Result "1-0"]
[Round "07"]
[TimeControl "180+1"]
[Date "2022.05.25"]
[WhiteClock "0:00:21"]
[BlackClock "0:00:54"]

1. d4 {[%clk 0:02:57]}  Nf6 {[%clk 0:02:59]} 2. c4 {[%clk 0:02:58]}  e6 {[%clk 0:02:58]} 3. g3 {[%clk 0:02:58]}  d5 {[%clk 0:02:57]} 4. Bg2 {[%clk 0:02:58]}  Bb4+ {[%clk 0:02:57]} 5. Bd2 {[%clk 0:02:56]}  Bd6 {[%clk 0:02:57]} 6. Nf3 {[%clk 0:02:54]}  O-O {[%clk 0:02:56]} 7. O-O {[%clk 0:02:49]}  c6 {[%clk 0:02:56]} 8. Nc3 {[%clk 0:02:34]}  Nbd7 {[%clk 0:02:56]} 9. Qb3 {[%clk 0:02:22]}  dxc4 {[%clk 0:02:44]} 10. Qxc4 {[%clk 0:02:23]}  e5 {[%clk 0:02:44]} 11. Bg5 {[%clk 0:02:20]}  exd4 {[%clk 0:02:38]} 12. Nxd4 {[%clk 0:02:11]}  Ne5 {[%clk 0:02:38]} 13. Qb3 {[%clk 0:02:07]}  Be7 {[%clk 0:02:30]} 14. Rfd1 {[%clk 0:02:04]}  Qa5 {[%clk 0:02:24]} 15. Bd2 {[%clk 0:01:57]}  Qb6 {[%clk 0:02:19]} 16. Bf4 {[%clk 0:01:53]}  Ng6 {[%clk 0:02:06]} 17. Qxb6 {[%clk 0:01:17]}  axb6 {[%clk 0:02:07]} 18. Bc7 {[%clk 0:01:13]}  b5 {[%clk 0:02:07]} 19. Nb3 {[%clk 0:01:00]}  Be6 {[%clk 0:01:50]} 20. h3 {[%clk 0:00:44]}  Bb4 {[%clk 0:01:43]} 21. g4 {[%clk 0:00:39]}  Bxc3 {[%clk 0:01:43]} 22. bxc3 {[%clk 0:00:40]}  Rxa2 {[%clk 0:01:42]} 23. Rxa2 {[%clk 0:00:38]}  Bxb3 {[%clk 0:01:43]} 24. Rda1 {[%clk 0:00:38]}  Bxa2 {[%clk 0:01:42]} 25. Rxa2 {[%clk 0:00:39]}  Rc8 {[%clk 0:01:36]} 26. Bg3 {[%clk 0:00:38]}  Ne7 {[%clk 0:01:29]} 27. e4 {[%clk 0:00:38]}  Nd7 {[%clk 0:01:23]} 28. f4 {[%clk 0:00:35]}  Nc5 {[%clk 0:01:21]} 29. e5 {[%clk 0:00:33]}  Nd5 {[%clk 0:01:19]} 30. Bxd5 {[%clk 0:00:31]}  cxd5 {[%clk 0:01:19]} 31. f5 {[%clk 0:00:32]}  Ne4 {[%clk 0:01:16]} 32. Bh4 {[%clk 0:00:31]}  g5 {[%clk 0:01:14]} 33. Be1 {[%clk 0:00:28]}  Nxc3 {[%clk 0:01:14]} 34. Bxc3 {[%clk 0:00:26]}  Rxc3 {[%clk 0:01:13]} 35. Ra8+ {[%clk 0:00:27]}  Kg7 {[%clk 0:01:13]} 36. f6+ {[%clk 0:00:26]}  Kg6 {[%clk 0:01:13]} 37. Rg8+ {[%clk 0:00:25]}  Kh6 {[%clk 0:01:13]} 38. e6 {[%clk 0:00:25]}  fxe6 {[%clk 0:01:00]} 39. f7 {[%clk 0:00:26]}  Rf3 {[%clk 0:01:00]} 40. f8=Q+ {[%clk 0:00:26]}  Rxf8 {[%clk 0:01:01]} 41. Rxf8 {[%clk 0:00:26]}  Kg7 {[%clk 0:01:02]} 42. Rb8 {[%clk 0:00:26]}  Kf6 {[%clk 0:01:02]} 43. Rxb7 {[%clk 0:00:27]}  Ke5 {[%clk 0:01:02]} 44. Rxb5 {[%clk 0:00:27]}  Kd4 {[%clk 0:01:01]} 45. Kf2 {[%clk 0:00:28]}  e5 {[%clk 0:01:01]} 46. Ke2 {[%clk 0:00:25]}  e4 {[%clk 0:00:59]} 47. Rb7 {[%clk 0:00:23]}  Kc3 {[%clk 0:00:59]} 48. Ke3 {[%clk 0:00:23]}  h6 {[%clk 0:00:57]} 49. Rc7+ {[%clk 0:00:22]}  Kb4 {[%clk 0:00:56]} 50. Kd4 {[%clk 0:00:23]}  Kb3 {[%clk 0:00:55]} 51. Kxd5 {[%clk 0:00:22]}  e3 {[%clk 0:00:55]} 52. Re7 {[%clk 0:00:22]}  Kc3 {[%clk 0:00:55]} 53. Rxe3+ {[%clk 0:00:22]}  Kd2 {[%clk 0:00:56]} 54. Re6 {[%clk 0:00:22]}  Kd3 {[%clk 0:00:55]} 55. Rxh6 {[%clk 0:00:23]}  Ke3 {[%clk 0:00:56]} 56. h4 {[%clk 0:00:23]}  Kf4 {[%clk 0:00:57]} 57. h5 {[%clk 0:00:21]}  Kxg4 {[%clk 0:00:57]} 58. Rh8 {[%clk 0:00:22]}  Kf5 {[%clk 0:00:57]} 59. Rg8 {[%clk 0:00:20]}  g4 {[%clk 0:00:56]} 60. h6 {[%clk 0:00:21]}  Kf4 {[%clk 0:00:56]} 61. h7 {[%clk 0:00:21]}  Kg3 {[%clk 0:00:57]} 62. h8=Q {[%clk 0:00:21]}  Kf3 {[%clk 0:00:56]} 63. Qf6+ {[%clk 0:00:21]}  Ke2 {[%clk 0:00:55]} 64. Re8+ {[%clk 0:00:21]}  Kd3 {[%clk 0:00:53]} 65. Qd4+ {[%clk 0:00:21]}  Kc2 {[%clk 0:00:53]} 66. Re2+ {[%clk 0:00:21]}  Kb1 {[%clk 0:00:54]} 67. Qb2# {[%clk 0:00:21]} 1-0


[Site "https://www.chess.com"]

[Event "Titled Tuesday Blitz May 24 Early 2022"]
[White "Jian, Alex"]
[Black "Prokofiev, Valentyn"]
[WhiteFideId "30901022"]
[BlackFideId "14160161"]
[WhiteElo "2111"]
[BlackElo "2174"]
[Result "0-1"]
[Round "07"]
[TimeControl "180+1"]
[Date "2022.05.25"]
[WhiteClock "0:00:45"]
[BlackClock "0:02:01"]

1. Nf3 {[%clk 0:03:00]}  Nf6 {[%clk 0:02:59]} 2. b3 {[%clk 0:03:00]}  g6 {[%clk 0:02:58]} 3. Bb2 {[%clk 0:03:00]}  Bg7 {[%clk 0:02:59]} 4. e3 {[%clk 0:03:01]}  O-O {[%clk 0:03:00]} 5. d4 {[%clk 0:03:00]}  b6 {[%clk 0:02:57]} 6. Be2 {[%clk 0:03:00]}  Bb7 {[%clk 0:02:58]} 7. O-O {[%clk 0:02:59]}  e6 {[%clk 0:02:59]} 8. c4 {[%clk 0:02:59]}  c5 {[%clk 0:02:59]} 9. Nc3 {[%clk 0:02:58]}  cxd4 {[%clk 0:02:57]} 10. exd4 {[%clk 0:02:58]}  d5 {[%clk 0:02:57]} 11. Ne5 {[%clk 0:02:56]}  dxc4 {[%clk 0:02:51]} 12. bxc4 {[%clk 0:02:55]}  Nbd7 {[%clk 0:02:51]} 13. Bf3 {[%clk 0:02:49]}  Bxf3 {[%clk 0:02:46]} 14. Qxf3 {[%clk 0:02:50]}  Nxe5 {[%clk 0:02:46]} 15. dxe5 {[%clk 0:02:50]}  Nd7 {[%clk 0:02:46]} 16. Ne4 {[%clk 0:02:27]}  Nxe5 {[%clk 0:02:43]} 17. Bxe5 {[%clk 0:02:14]}  Bxe5 {[%clk 0:02:43]} 18. Rad1 {[%clk 0:02:14]}  Qc7 {[%clk 0:02:43]} 19. Nf6+ {[%clk 0:02:03]}  Bxf6 {[%clk 0:02:43]} 20. Qxf6 {[%clk 0:02:02]}  Qxc4 {[%clk 0:02:42]} 21. Rd4 {[%clk 0:01:58]}  Qc5 {[%clk 0:02:41]} 22. Rfd1 {[%clk 0:01:53]}  Rac8 {[%clk 0:02:37]} 23. h3 {[%clk 0:01:38]}  Qf5 {[%clk 0:02:33]} 24. Qe7 {[%clk 0:01:35]}  Rc2 {[%clk 0:02:33]} 25. Rf1 {[%clk 0:01:26]}  Rxa2 {[%clk 0:02:25]} 26. Rd7 {[%clk 0:01:17]}  Kg7 {[%clk 0:02:22]} 27. Rxa7 {[%clk 0:01:14]}  Rxa7 {[%clk 0:02:19]} 28. Qxa7 {[%clk 0:01:15]}  b5 {[%clk 0:02:17]} 29. Qb7 {[%clk 0:01:11]}  Rd8 {[%clk 0:02:14]} 30. Rc1 {[%clk 0:01:08]}  Rd2 {[%clk 0:02:12]} 31. Qb6 {[%clk 0:01:05]}  Qd5 {[%clk 0:02:08]} 32. Rc5 {[%clk 0:00:57]}  Qd4 {[%clk 0:02:05]} 33. Qc6 {[%clk 0:00:47]}  Rd1+ {[%clk 0:01:59]} 34. Kh2 {[%clk 0:00:46]}  Qf4+ {[%clk 0:02:00]} 35. g3 {[%clk 0:00:46]}  Qxf2+ {[%clk 0:02:00]} 36. Qg2 {[%clk 0:00:45]}  Qxc5 {[%clk 0:02:01]} 0-1


[Site "https://www.chess.com"]

[Event "Titled Tuesday Blitz May 24 Early 2022"]
[White "Juhasz, Agoston"]
[Black "Kuznetsov, Mikhail"]
[WhiteFideId "778346"]
[BlackFideId "4117190"]
[WhiteElo "2211"]
[BlackElo "1981"]
[Result "1-0"]
[Round "07"]
[TimeControl "180+1"]
[Date "2022.05.25"]
[WhiteClock "0:00:33"]
[BlackClock "0:00:31"]

1. e4 {[%clk 0:03:00]}  c6 {[%clk 0:02:59]} 2. d4 {[%clk 0:02:59]}  d5 {[%clk 0:03:00]} 3. exd5 {[%clk 0:03:00]}  cxd5 {[%clk 0:03:01]} 4. Bd3 {[%clk 0:03:01]}  Nf6 {[%clk 0:03:02]} 5. c3 {[%clk 0:03:00]}  Bg4 {[%clk 0:02:59]} 6. Qb3 {[%clk 0:02:54]}  Qc8 {[%clk 0:02:56]} 7. Ne2 {[%clk 0:02:47]}  Nc6 {[%clk 0:02:49]} 8. Bf4 {[%clk 0:02:47]}  e6 {[%clk 0:02:49]} 9. Nd2 {[%clk 0:02:47]}  Be7 {[%clk 0:02:48]} 10. O-O {[%clk 0:02:44]}  O-O {[%clk 0:02:47]} 11. Rae1 {[%clk 0:02:44]}  a6 {[%clk 0:02:31]} 12. Ng3 {[%clk 0:02:44]}  Nh5 {[%clk 0:02:29]} 13. Be3 {[%clk 0:02:16]}  Nxg3 {[%clk 0:02:27]} 14. fxg3 {[%clk 0:02:16]}  Bh5 {[%clk 0:02:26]} 15. Nf3 {[%clk 0:02:10]}  Bg6 {[%clk 0:02:24]} 16. Bxg6 {[%clk 0:02:10]}  hxg6 {[%clk 0:02:25]} 17. Bf4 {[%clk 0:02:05]}  Bf6 {[%clk 0:02:25]} 18. g4 {[%clk 0:02:02]}  Na5 {[%clk 0:02:17]} 19. Qc2 {[%clk 0:01:46]}  Nc6 {[%clk 0:02:11]} 20. g5 {[%clk 0:01:45]}  Nxd4 {[%clk 0:02:00]} 21. Nxd4 {[%clk 0:01:22]}  Bxd4+ {[%clk 0:02:01]} 22. Kh1 {[%clk 0:01:22]}  Bb6 {[%clk 0:01:44]} 23. Rf3 {[%clk 0:01:12]}  Qc4 {[%clk 0:01:37]} 24. b3 {[%clk 0:01:04]}  Qc6 {[%clk 0:01:36]} 25. Rh3 {[%clk 0:01:00]}  f6 {[%clk 0:01:25]} 26. Qxg6 {[%clk 0:00:57]}  fxg5 {[%clk 0:01:01]} 27. Be5 {[%clk 0:00:48]}  Qd7 {[%clk 0:00:52]} 28. Rh7 {[%clk 0:00:34]}  Rf7 {[%clk 0:00:47]} 29. Qh5 {[%clk 0:00:33]}  Kf8 {[%clk 0:00:30]} 30. Rh8+ {[%clk 0:00:32]}  Ke7 {[%clk 0:00:31]} 31. Qxg5+ {[%clk 0:00:33]} 1-0


[Site "https://www.chess.com"]

[Event "Titled Tuesday Blitz May 24 Early 2022"]
[White "Kamsky, Gata"]
[Black "Aradhya, Garg"]
[WhiteFideId "2000024"]
[BlackFideId "25006746"]
[WhiteElo "2645"]
[BlackElo "2169"]
[Result "1-0"]
[Round "07"]
[TimeControl "180+1"]
[Date "2022.05.24"]
[WhiteClock "0:00:50"]
[BlackClock "0:00:33"]

1. d4 {[%clk 0:03:00]}  d5 {[%clk 0:02:59]} 2. Bf4 {[%clk 0:02:56]}  c5 {[%clk 0:02:59]} 3. e3 {[%clk 0:02:56]}  Nc6 {[%clk 0:02:59]} 4. c3 {[%clk 0:02:56]}  f6 {[%clk 0:02:58]} 5. Nf3 {[%clk 0:02:51]}  Bg4 {[%clk 0:02:58]} 6. Qb3 {[%clk 0:02:48]}  Qb6 {[%clk 0:02:45]} 7. dxc5 {[%clk 0:02:45]}  Qxb3 {[%clk 0:02:44]} 8. axb3 {[%clk 0:02:45]}  e5 {[%clk 0:02:44]} 9. Bg3 {[%clk 0:02:45]}  Bxc5 {[%clk 0:02:45]} 10. b4 {[%clk 0:02:45]}  Bb6 {[%clk 0:02:39]} 11. Be2 {[%clk 0:02:43]}  Nge7 {[%clk 0:02:38]} 12. h3 {[%clk 0:02:38]}  Be6 {[%clk 0:02:38]} 13. Nbd2 {[%clk 0:02:32]}  Nf5 {[%clk 0:02:27]} 14. Bh2 {[%clk 0:02:30]}  d4 {[%clk 0:02:28]} 15. exd4 {[%clk 0:02:20]}  exd4 {[%clk 0:02:28]} 16. b5 {[%clk 0:02:18]}  dxc3 {[%clk 0:02:24]} 17. bxc3 {[%clk 0:02:18]}  Nce7 {[%clk 0:02:20]} 18. g4 {[%clk 0:02:05]}  Nh6 {[%clk 0:02:18]} 19. Ne4 {[%clk 0:01:51]}  O-O {[%clk 0:02:18]} 20. c4 {[%clk 0:01:37]}  Rfc8 {[%clk 0:01:59]} 21. Nd6 {[%clk 0:01:35]}  Rc7 {[%clk 0:01:58]} 22. O-O {[%clk 0:01:33]}  Rd7 {[%clk 0:01:57]} 23. Rfc1 {[%clk 0:01:30]}  Nf7 {[%clk 0:01:53]} 24. c5 {[%clk 0:01:24]}  Nxd6 {[%clk 0:01:53]} 25. Bxd6 {[%clk 0:01:24]}  Bc7 {[%clk 0:01:52]} 26. Bxc7 {[%clk 0:01:23]}  Rxc7 {[%clk 0:01:53]} 27. Nd4 {[%clk 0:01:22]}  Bd7 {[%clk 0:01:46]} 28. b6 {[%clk 0:01:22]}  Rcc8 {[%clk 0:01:47]} 29. bxa7 {[%clk 0:01:20]}  Nc6 {[%clk 0:01:46]} 30. Nb5 {[%clk 0:01:15]}  Ne5 {[%clk 0:01:45]} 31. Nd6 {[%clk 0:01:14]}  Rc7 {[%clk 0:01:46]} 32. f4 {[%clk 0:01:14]}  Ng6 {[%clk 0:01:45]} 33. Bf3 {[%clk 0:01:09]}  Bc6 {[%clk 0:01:45]} 34. Bxc6 {[%clk 0:01:04]}  bxc6 {[%clk 0:01:46]} 35. Rcb1 {[%clk 0:01:05]}  Rcxa7 {[%clk 0:01:44]} 36. Rxa7 {[%clk 0:01:04]}  Rxa7 {[%clk 0:01:45]} 37. Rb8+ {[%clk 0:01:03]}  Nf8 {[%clk 0:01:45]} 38. Rc8 {[%clk 0:01:03]}  Ra6 {[%clk 0:01:18]} 39. f5 {[%clk 0:01:00]}  g6 {[%clk 0:01:18]} 40. Rc7 {[%clk 0:00:59]}  gxf5 {[%clk 0:01:18]} 41. gxf5 {[%clk 0:00:59]}  Ra3 {[%clk 0:00:56]} 42. Kg2 {[%clk 0:00:57]}  Ra2+ {[%clk 0:00:56]} 43. Kg3 {[%clk 0:00:55]}  Ra3+ {[%clk 0:00:57]} 44. Kg4 {[%clk 0:00:55]}  Ra4+ {[%clk 0:00:57]} 45. Kh5 {[%clk 0:00:54]}  Ra3 {[%clk 0:00:52]} 46. h4 {[%clk 0:00:54]}  Ra5 {[%clk 0:00:46]} 47. Kh6 {[%clk 0:00:54]}  Ne6 {[%clk 0:00:36]} 48. fxe6 {[%clk 0:00:51]}  Ra8 {[%clk 0:00:35]} 49. Rg7+ {[%clk 0:00:49]}  Kf8 {[%clk 0:00:33]} 50. e7# {[%clk 0:00:50]} 1-0


[Site "https://www.chess.com"]

[Event "Titled Tuesday Blitz May 24 Early 2022"]
[White "Khoroshev, Nikita"]
[Black "Kruckenhauser, Arthur"]
[WhiteFideId "14200287"]
[BlackFideId "1642812"]
[WhiteElo "2354"]
[BlackElo "2243"]
[Result "1-0"]
[Round "07"]
[TimeControl "180+1"]
[Date "2022.05.24"]
[WhiteClock "0:01:25"]
[BlackClock "0:00:38"]

1. e4 {[%clk 0:03:00]}  e5 {[%clk 0:02:59]} 2. Nf3 {[%clk 0:03:01]}  Nc6 {[%clk 0:02:57]} 3. Bb5 {[%clk 0:03:01]}  a6 {[%clk 0:02:55]} 4. Ba4 {[%clk 0:03:01]}  Nf6 {[%clk 0:02:51]} 5. O-O {[%clk 0:03:02]}  Nxe4 {[%clk 0:02:51]} 6. d4 {[%clk 0:03:02]}  Be7 {[%clk 0:02:43]} 7. Re1 {[%clk 0:02:53]}  b5 {[%clk 0:02:42]} 8. Bb3 {[%clk 0:02:42]}  d5 {[%clk 0:02:39]} 9. dxe5 {[%clk 0:02:40]}  Be6 {[%clk 0:02:30]} 10. a4 {[%clk 0:02:41]}  Na5 {[%clk 0:02:20]} 11. Nd4 {[%clk 0:02:13]}  Nxb3 {[%clk 0:02:15]} 12. cxb3 {[%clk 0:02:14]}  b4 {[%clk 0:02:12]} 13. f3 {[%clk 0:02:10]}  Nc5 {[%clk 0:02:08]} 14. Nc6 {[%clk 0:02:05]}  Qd7 {[%clk 0:02:02]} 15. Nxe7 {[%clk 0:02:04]}  Qxe7 {[%clk 0:02:02]} 16. Nd2 {[%clk 0:01:58]}  Nd3 {[%clk 0:02:00]} 17. Re3 {[%clk 0:01:58]}  Qc5 {[%clk 0:01:53]} 18. Nf1 {[%clk 0:01:58]}  Nxe5 {[%clk 0:01:45]} 19. f4 {[%clk 0:01:50]}  Ng6 {[%clk 0:01:08]} 20. f5 {[%clk 0:01:49]}  d4 {[%clk 0:01:08]} 21. fxe6 {[%clk 0:01:48]}  fxe6 {[%clk 0:00:57]} 22. Rxe6+ {[%clk 0:01:47]}  Kf7 {[%clk 0:00:56]} 23. Re4 {[%clk 0:01:47]}  Rad8 {[%clk 0:00:55]} 24. Qf3+ {[%clk 0:01:43]}  Kg8 {[%clk 0:00:54]} 25. Bd2 {[%clk 0:01:42]}  Ne5 {[%clk 0:00:50]} 26. Qf5 {[%clk 0:01:40]}  Nd3 {[%clk 0:00:45]} 27. Qe6+ {[%clk 0:01:33]}  Kf8 {[%clk 0:00:43]} 28. Rc1 {[%clk 0:01:31]}  Qd5 {[%clk 0:00:39]} 29. Qe7+ {[%clk 0:01:24]}  Kg8 {[%clk 0:00:38]} 30. Rxc7 {[%clk 0:01:25]} 1-0


[Site "https://www.chess.com"]

[Event "Titled Tuesday Blitz May 24 Early 2022"]
[White "Kozak, Antoni"]
[Black "Mekhitarian, Krikor Sevag"]
[WhiteFideId "21832030"]
[BlackFideId "2107660"]
[WhiteElo "2322"]
[BlackElo "2598"]
[Result "1-0"]
[Round "07"]
[TimeControl "180+1"]
[Date "2022.05.24"]
[WhiteClock "0:00:08"]
[BlackClock "0:00:02"]

1. Nf3 {[%clk 0:03:00]}  d5 {[%clk 0:02:59]} 2. e3 {[%clk 0:03:01]}  Nf6 {[%clk 0:02:58]} 3. c4 {[%clk 0:03:01]}  dxc4 {[%clk 0:02:59]} 4. Bxc4 {[%clk 0:03:00]}  e6 {[%clk 0:03:00]} 5. O-O {[%clk 0:02:58]}  c5 {[%clk 0:03:01]} 6. b3 {[%clk 0:02:57]}  a6 {[%clk 0:02:59]} 7. Bb2 {[%clk 0:02:57]}  b5 {[%clk 0:02:58]} 8. Be2 {[%clk 0:02:57]}  Bb7 {[%clk 0:02:58]} 9. d4 {[%clk 0:02:56]}  Nbd7 {[%clk 0:02:57]} 10. Nbd2 {[%clk 0:02:55]}  Be7 {[%clk 0:02:54]} 11. a4 {[%clk 0:02:54]}  bxa4 {[%clk 0:02:54]} 12. Rxa4 {[%clk 0:02:54]}  O-O {[%clk 0:02:53]} 13. Qa1 {[%clk 0:02:40]}  cxd4 {[%clk 0:02:26]} 14. Bxd4 {[%clk 0:02:39]}  Nc5 {[%clk 0:02:16]} 15. Bxc5 {[%clk 0:02:39]}  Bxc5 {[%clk 0:02:17]} 16. Bxa6 {[%clk 0:02:34]}  Bc6 {[%clk 0:02:14]} 17. Ra2 {[%clk 0:02:01]}  Bb4 {[%clk 0:01:50]} 18. Rd1 {[%clk 0:01:57]}  Nd5 {[%clk 0:01:46]} 19. Nf1 {[%clk 0:01:34]}  Qb6 {[%clk 0:01:41]} 20. Ne5 {[%clk 0:01:06]}  Nc3 {[%clk 0:00:24]} 21. Rc1 {[%clk 0:01:06]}  Bd5 {[%clk 0:00:16]} 22. Nd7 {[%clk 0:01:01]}  Qd6 {[%clk 0:00:16]} 23. Nxf8 {[%clk 0:00:53]}  Nxa2 {[%clk 0:00:16]} 24. Qxa2 {[%clk 0:00:49]}  Kxf8 {[%clk 0:00:05]} 25. Rc8+ {[%clk 0:00:41]}  Rxc8 {[%clk 0:00:05]} 26. Bxc8 {[%clk 0:00:42]}  Qc7 {[%clk 0:00:05]} 27. Ba6 {[%clk 0:00:40]}  g6 {[%clk 0:00:04]} 28. Bc4 {[%clk 0:00:36]}  Bc6 {[%clk 0:00:03]} 29. Qe2 {[%clk 0:00:36]}  Kg7 {[%clk 0:00:03]} 30. Qd3 {[%clk 0:00:35]}  Be7 {[%clk 0:00:03]} 31. Ng3 {[%clk 0:00:33]}  Bf6 {[%clk 0:00:04]} 32. h3 {[%clk 0:00:33]}  Be5 {[%clk 0:00:04]} 33. Ne2 {[%clk 0:00:32]}  h5 {[%clk 0:00:04]} 34. Nd4 {[%clk 0:00:32]}  Bb7 {[%clk 0:00:04]} 35. Nf3 {[%clk 0:00:24]}  Bf6 {[%clk 0:00:03]} 36. Nd2 {[%clk 0:00:23]}  Qc6 {[%clk 0:00:03]} 37. f3 {[%clk 0:00:16]}  g5 {[%clk 0:00:03]} 38. Kf1 {[%clk 0:00:16]}  Qb6 {[%clk 0:00:04]} 39. Ke2 {[%clk 0:00:16]}  Qc7 {[%clk 0:00:02]} 40. Ne4 {[%clk 0:00:14]}  Be7 {[%clk 0:00:03]} 41. Qc3+ {[%clk 0:00:13]}  f6 {[%clk 0:00:03]} 42. Bxe6 {[%clk 0:00:13]}  Qb6 {[%clk 0:00:02]} 43. Bc4 {[%clk 0:00:09]}  Qc7 {[%clk 0:00:02]} 44. Qd4 {[%clk 0:00:09]}  Qh2 {[%clk 0:00:03]} 45. Kf1 {[%clk 0:00:09]}  Qc7 {[%clk 0:00:02]} 46. Nc3 {[%clk 0:00:09]}  Bc5 {[%clk 0:00:02]} 47. Qd3 {[%clk 0:00:09]}  Bd6 {[%clk 0:00:02]} 48. Nb5 {[%clk 0:00:08]} 1-0


[Site "https://www.chess.com"]